[Event "CZE-ch Youth B16 2022"]
[Site "Luhacovice"]
[Date "2022.03.14"]
[Round "3.8"]
[White "Oborny, Stanislav"]
[Black "Stejskal, Michal"]
[Result "0-1"]
[ECO "B31"]
[WhiteElo "1674"]
[BlackElo "1857"]
[Annotator "NA"]
[PlyCount "90"]
[EventDate "2022.03.12"]
[EventType "swiss"]
[EventCountry "CZE"]
[SourceTitle "playchess.com"]
[Source "ChessBase"]
[SourceQuality "1"]
[TimeControl "40/5400+30:1800+30"]

1. e4 {[%emt 0:00:03]} c5 {[%emt 0:00:31]} 2. Nf3 {[%emt 0:00:06]} Nc6 {[%emt 0:00:05]} 3. Bb5 {[%emt 0:00:24]} g6 {[%emt 0:00:08]} 4. c3 {[%emt 0:00:46]} Bg7 {[%emt 0:01:12]} 5. O-O {[%emt 0:01:32]} e5 {[%emt 0:01:13]} 6. Re1 {[%emt 0:02:32]} Nge7 {[%emt 0:03:06]} 7. d3 {[%emt 0:01:08]} h6 {[%emt 0:03:45]} ({Black should play} 7... O-O $11) 8. Nbd2 {[%emt 0:04:01]} O-O {[%emt 0:01:47]} 9. Ba4 {[%emt 0:07:14]} d6 {[%emt 0:02:28]} 10. Nf1 {[%emt 0:03:41]} f5 {[%emt 0:03:17]} 11. Ne3 {[%emt 0:06:50]} f4 {[%emt 0:04:47]} 12. Nd5 {[%emt 0:08:10]} Nxd5 {[%emt 0:01:00]} 13. exd5 {[%emt 0:00:38]} Ne7 {[%emt 0:00:10]} 14. d4 {[%emt 0:03:08]} cxd4 {[%emt 0:09:16]} 15. cxd4 {[%emt 0:00:15]} Bg4 {[%emt 0:03:13]} 16. dxe5 {[%emt 0:05:01]} Bxe5 {[%emt 0:00:21]} 17. Qd3 {[%emt 0:05:14]} Qa5 {[%emt 0:12:01]} (17... Bxf3 $11 {keeps the balance.} 18. Qxf3 a6) 18. Qb5 {[%emt 0:04:57]} Qxb5 {[%emt 0:00:10]} 19. Bxb5 {[%emt 0:00:02]} Bxf3 {[%emt 0:00:14]} 20. gxf3 {[%emt 0:00:03]} Kg7 {[%emt 0:01:59]} 21. Rd1 {[%emt 0:08:44]} Nf5 {[%emt 0:02:21]} 22. Bd3 {[%emt 0:00:59]} Nh4 {[%emt 0:00:45]} 23. Be4 {[%emt 0:00:22]} Rf7 {[%emt 0:05:32]} 24. Rd3 {[%emt 0:06:54]} Nf5 {[%emt 0:04:50]} 25. Kf1 {[%emt 0:03:30]} Kf6 {[%emt 0:01:47]} 26. Rb1 {[%emt 0:04:12]} Rc8 {[%emt 0:03:01]} 27. Bd2 {[%emt 0:08:42]} Rfc7 {[%emt 0:00:23]} 28. Ra3 {[%emt 0:04:05]} b6 {[%emt 0:02:09]} 29. Ra6 {[%emt 0:01:26]} g5 {[%emt 0:03:14]} 30. a4 {[%emt 0:02:03] [#]} Nd4 $17 {[%emt 0:01:06]} 31. b4 {[%emt 0:04:28]} Nc2 {[%emt 0:02:37]} 32. a5 {[%emt 0:02:11]} Na3 {[%emt 0:00:37]} 33. Rb3 {[%emt 0:02:45]} Nc4 {[%emt 0:00:07]} 34. Be1 {[%emt 0:00:27]} Bd4 {[%emt 0:02:12]} 35. Rd3 {[%emt 0:00:40]} Ke5 {[%emt 0:00:33]} 36. axb6 {[%emt 0:00:28]} axb6 {[%emt 0:00:06]} 37. Ra2 {[%emt 0:00:39]} b5 {[%emt 0:01:14]} 38. Rc2 {[%emt 0:00:20]} Nb2 {[%emt 0:07:54]} 39. Rdd2 {[%emt 0:00:49]} Rxc2 {[%emt 0:00:16]} 40. Bxc2 {[%emt 0:00:19]} Kxd5 {[%emt 0:02:50]} 41. Be4+ {[%emt 0:30:33]} Ke5 {[%emt 0:30:15]} 42. Re2 {[%emt 0:00:12]} Kf6 {[%emt 0:04:03]} 43. Rd2 {[%emt 0:00:53]} Be5 {[%emt 0:02:35]} 44. Bb7 {[%emt 0:00:00]} Rc1 {[%emt 0:00:00]} 45. Re2 {[%emt 0:00:00]} Bc3 {[%emt 0:00:00]} 0-1

[Event "CZE-ch Youth B16 2022"]
[Site "Luhacovice"]
[Date "2022.03.14"]
[Round "3.9"]
[White "Mrazek, Roman"]
[Black "Hak, David"]
[Result "1/2-1/2"]
[ECO "C00"]
[WhiteElo "1820"]
[BlackElo "2132"]
[Annotator "ChessBase"]
[PlyCount "113"]
[EventDate "2022.03.12"]
[EventType "swiss"]
[EventCountry "CZE"]
[SourceTitle "playchess.com"]
[Source "ChessBase"]
[SourceQuality "1"]
[TimeControl "40/5400+30:1800+30"]

1. e4 e6 2. d3 d5 3. Nd2 c5 4. Ngf3 Nf6 5. g3 Nc6 6. Bg2 Be7 7. O-O b5 8. Re1 O-O 9. e5 Nd7 10. h4 Qc7 11. Qe2 Bb7 12. c3 Nb6 13. d4 b4 14. dxc5 Bxc5 15. Nb3 Be7 16. Bf4 bxc3 17. bxc3 a5 18. Nbd4 Nxd4 19. cxd4 Ba6 20. Qd1 Nc4 21. Bf1 Rfb8 22. Bxc4 Bxc4 23. Qc2 Qb6 24. Rab1 Qa6 25. Re3 Rxb1+ 26. Qxb1 Qa7 27. Qc2 Rb8 28. a3 Qb6 29. Rc3 h6 30. Kg2 Bf8 31. Be3 Bb3 32. Qc1 a4 33. Qb2 Qa5 34. Bd2 Qa7 35. Bc1 Bc4 36. Qd2 Rb1 37. Qe3 Rb3 38. Nd2 Rxc3 39. Qxc3 Ba6 40. Bb2 Qb6 41. Nf1 Qb5 42. Ne3 g5 43. hxg5 hxg5 44. Qc2 Be7 45. Bc1 Bd8 46. Bd2 Bb6 47. Qc3 Qe2 48. Qb4 Bd3 49. Qxb6 Be4+ 50. Kg1 Qxd2 51. Qd8+ Kh7 52. Qe7 Qc1+ 53. Nf1 Bg6 54. Kg2 Qd1 55. Qxg5 Qxd4 56. Ne3 Qe4+ 57. Kh2 1/2-1/2

[Event "CZE-ch Youth B16 2022"]
[Site "Luhacovice"]
[Date "2022.03.14"]
[Round "3.10"]
[White "Pelc, Adam"]
[Black "Trojan, Matyas"]
[Result "1-0"]
[ECO "C68"]
[WhiteElo "1811"]
[BlackElo "1582"]
[Annotator "NA"]
[PlyCount "107"]
[EventDate "2022.03.12"]
[EventType "swiss"]
[EventCountry "CZE"]
[SourceTitle "playchess.com"]
[Source "ChessBase"]
[SourceQuality "1"]
[TimeControl "40/5400+30:1800+30"]

1. e4 {[%emt 0:00:03]} e5 {[%emt 0:00:05]} 2. Nf3 {[%emt 0:00:43]} Nc6 {[%emt 0:00:05]} 3. Bb5 {[%emt 0:00:42]} a6 {[%emt 0:00:22]} 4. Bxc6 {[%emt 0:00:17]} dxc6 {[%emt 0:00:09]} 5. O-O {[%emt 0:00:17]} Qd6 {[%emt 0:00:37]} 6. d3 {[%emt 0:01:08]} f6 {[%emt 0:03:08]} 7. Be3 {[%emt 0:03:50]} Ne7 {[%emt 0:04:29]} 8. Nfd2 {[%emt 0:02:38]} Be6 {[%emt 0:06:35]} 9. Nb3 $11 {[%emt 0:02:21]} b6 {[%emt 0:07:01]} 10. N1d2 {[%emt 0:00:45]} Ng6 {[%emt 0:01:27]} 11. a4 {[%emt 0:08:11]} c5 {[%emt 0:08:46]} 12. Nc1 {[%emt 0:21:37]} Be7 {[%emt 0:05:54]} 13. Ne2 {[%emt 0:03:11]} O-O {[%emt 0:06:21]} 14. f4 {[%emt 0:10:17]} exf4 {[%emt 0:09:38]} 15. Nxf4 {[%emt 0:00:42]} Nxf4 {[%emt 0:00:55]} 16. Rxf4 {[%emt 0:03:09]} f5 {[%emt 0:11:01]} 17. exf5 {[%emt 0:03:25]} Bg5 {[%emt 0:07:07]} 18. Ne4 {[%emt 0:00:51]} Qe5 {[%emt 0:00:41]} 19. Nxg5 {[%emt 0:09:55]} Qxe3+ {[%emt 0:01:40]} 20. Rf2 {[%emt 0:04:04]} Bxf5 {[%emt 0:02:59]} 21. Qd2 {[%emt 0:02:25]} Qxd2 {[%emt 0:02:58]} 22. Rxd2 {[%emt 0:00:21]} h6 {[%emt 0:00:57]} 23. Nf3 {[%emt 0:00:42]} Rfe8 {[%emt 0:01:34]} 24. Kf2 {[%emt 0:00:39]} Re7 {[%emt 0:02:02]} 25. Re2 {[%emt 0:05:51]} Rae8 {[%emt 0:00:46]} 26. Rae1 {[%emt 0:03:07]} Rxe2+ {[%emt 0:01:10]} 27. Rxe2 {[%emt 0:00:06]} Rxe2+ {[%emt 0:00:05]} 28. Kxe2 {[%emt 0:00:08]} Bd7 {[%emt 0:02:58]} 29. b3 {[%emt 0:00:16]} Bg4 {[%emt 0:00:07]} 30. Ke3 {[%emt 0:01:31]} Bxf3 {[%emt 0:00:35]} 31. Kxf3 {[%emt 0:00:26]} Kf7 {[%emt 0:00:51]} 32. Ke4 {[%emt 0:02:07]} Ke6 {[%emt 0:00:17]} 33. c3 {[%emt 0:01:39]} a5 {[%emt 0:03:39]} 34. d4 {[%emt 0:03:25]} cxd4 {[%emt 0:00:51]} 35. Kxd4 {[%emt 0:00:07]} c6 {[%emt 0:00:47]} 36. b4 {[%emt 0:00:38]} Kd6 {[%emt 0:01:40]} 37. bxa5 {[%emt 0:00:26]} bxa5 {[%emt 0:00:06]} 38. Kc4 {[%emt 0:00:14]} g6 {[%emt 0:02:16]} 39. g3 {[%emt 0:00:24]} h5 {[%emt 0:05:22]} 40. h4 {[%emt 0:01:03]} Ke5 {[%emt 0:01:54]} 41. Kc5 {[%emt 0:30:19]} Kf5 {[%emt 0:30:15]} 42. Kxc6 {[%emt 0:00:05]} Kg4 {[%emt 0:00:11]} 43. c4 {[%emt 0:00:22]} Kxg3 {[%emt 0:00:05]} 44. c5 {[%emt 0:00:05]} Kxh4 {[%emt 0:00:17]} 45. Kb5 {[%emt 0:00:19]} Kg3 {[%emt 0:00:00]} 46. c6 {[%emt 0:00:00]} h4 {[%emt 0:00:00]} 47. c7 {[%emt 0:00:00]} h3 {[%emt 0:00:00]} 48. c8=Q {[%emt 0:00:00]} h2 {[%emt 0:00:00]} 49. Qc6 {[%emt 0:00:00]} g5 {[%emt 0:00:00]} 50. Kxa5 {[%emt 0:00:00]} g4 {[%emt 0:00:00]} 51. Kb4 {[%emt 0:00:00]} Kh3 {[%emt 0:00:00]} 52. a5 {[%emt 0:00:00]} g3 {[%emt 0:00:00]} 53. a6 {[%emt 0:00:00]} g2 {[%emt 0:00:00]} 54. Qf3+ {[%emt 0:00:00]} 1-0

[Event "CZE-ch Youth B16 2022"]
[Site "Luhacovice"]
[Date "2022.03.14"]
[Round "3.11"]
[White "Vasinek, Martin"]
[Black "Zrubek, Adam"]
[Result "1-0"]
[ECO "D07"]
[WhiteElo "1594"]
[BlackElo "1661"]
[Annotator "NA"]
[PlyCount "51"]
[EventDate "2022.03.12"]
[EventType "swiss"]
[EventCountry "CZE"]
[SourceTitle "playchess.com"]
[Source "ChessBase"]
[SourceQuality "1"]
[TimeControl "40/5400+30:1800+30"]

1. d4 {[%emt 0:00:04]} d5 {[%emt 0:00:08]} 2. c4 {[%emt 0:00:06]} Nc6 {[%emt 0:00:07]} 3. Nc3 {[%emt 0:00:09]} Nf6 {[%emt 0:00:50]} 4. Nf3 {[%emt 0:01:33]} dxc4 {[%emt 0:01:40]} 5. e4 {[%emt 0:00:37]} Bg4 {[%emt 0:02:36]} 6. Be3 {[%emt 0:00:13]} e6 {[%emt 0:01:37]} 7. Bxc4 {[%emt 0:02:56]} Bb4 {[%emt 0:07:07]} 8. Qd3 {[%emt 0:01:13]} Qd7 {[%emt 0:03:32]} 9. Bb5 {[%emt 0:06:42]} Bxf3 {[%emt 0:09:10]} 10. gxf3 {[%emt 0:00:21]} a6 {[%emt 0:01:26]} 11. Ba4 {[%emt 0:01:50]} Rd8 {[%emt 0:03:02]} 12. O-O-O {[%emt 0:02:32]} b5 {[%emt 0:02:48]} 13. Nxb5 {[%emt 0:12:52]} Ra8 {[%emt 0:35:37]} 14. Na7 {[%emt 0:07:20]} Nxa7 {[%emt 0:08:39]} 15. Bxd7+ {[%emt 0:00:09]} Kxd7 {[%emt 0:00:22]} 16. Bd2 {[%emt 0:02:21]} Bxd2+ {[%emt 0:01:06]} 17. Rxd2 {[%emt 0:00:56]} Nc8 {[%emt 0:00:19]} 18. Kb1 {[%emt 0:00:47]} Ne7 {[%emt 0:00:32]} 19. Rc1 {[%emt 0:00:16]} c6 {[%emt 0:00:17]} 20. Rc3 Rhb8 {[%emt 0:00:59]} 21. Rb3 {[%emt 0:00:44]} Rxb3 {[%emt 0:01:11]} 22. Qxb3 {[%emt 0:00:13]} Kc7 {[%emt 0:00:39]} 23. Rc2 {[%emt 0:00:30]} h6 {[%emt 0:01:24]} 24. Qb4 {[%emt 0:00:14]} Nfg8 {[%emt 0:00:17]} 25. Rc3 {[%emt 0:00:45]} Rb8 {[%emt 0:00:36]} 26. Qa5+ {[%emt 0:00:10]} 1-0

[Event "CZE-ch Youth B16 2022"]
[Site "Luhacovice"]
[Date "2022.03.14"]
[Round "3.12"]
[White "Simek, Viktor"]
[Black "Zezula, Jakub"]
[Result "0-1"]
[ECO "C51"]
[WhiteElo "1527"]
[BlackElo "1891"]
[Annotator "NA"]
[PlyCount "80"]
[EventDate "2022.03.12"]
[EventType "swiss"]
[EventCountry "CZE"]
[SourceTitle "playchess.com"]
[Source "ChessBase"]
[SourceQuality "1"]
[TimeControl "40/5400+30:1800+30"]

1. e4 e5 2. Nf3 Nc6 3. Bc4 Bc5 4. b4 Bxb4 5. c3 Be7 6. d4 Na5 7. Nxe5 Nxc4 8. Nxc4 d5 9. exd5 Qxd5 10. Ne3 Qd8 11. O-O Nf6 12. Nd2 O-O 13. Nf3 c6 14. Qc2 Re8 15. Rd1 Qc7 16. c4 h6 17. Bb2 Be6 18. Rac1 Rac8 19. Qb3 Qb6 20. d5 Qxb3 21. axb3 cxd5 22. cxd5 Rxc1 23. Bxc1 Bd7 24. d6 Bd8 25. Ba3 Bb6 26. Nc4 Bc6 27. Nxb6 axb6 28. h3 Nd7 29. Nd4 g6 $14 30. Rc1 f5 31. Nxc6 bxc6 32. Rxc6 Kf7 33. Rc1 Ne5 34. Re1 Nf3+ 35. gxf3 Rxe1+ 36. Kg2 Ke6 37. Kg3 Rb1 38. d7 Kxd7 39. Bf8 Rxb3 40. Bxh6 Ke6 0-1

[Event "CZE-ch Youth B16 2022"]
[Site "Luhacovice"]
[Date "2022.03.14"]
[Round "4.1"]
[White "Jirasko, Miroslav"]
[Black "Smolik, Jachym"]
[Result "0-1"]
[ECO "B12"]
[WhiteElo "1933"]
[BlackElo "2277"]
[Annotator "ChessBase"]
[PlyCount "105"]
[EventDate "2022.03.12"]
[EventType "swiss"]
[EventCountry "CZE"]
[SourceTitle "playchess.com"]
[Source "ChessBase"]
[SourceQuality "1"]
[TimeControl "40/5400+30:1800+30"]

1. e4 c6 2. d4 d5 3. f3 e6 4. Nc3 Bb4 5. Bf4 Ne7 6. Qd3 b6 7. Nge2 O-O 8. O-O-O Ba6 9. Qe3 c5 10. a3 Bxc3 11. Qxc3 Bxe2 12. Bxe2 c4 13. h4 Nbc6 14. h5 b5 15. Qe1 f6 16. g4 Qb6 17. Bd6 Rad8 18. Bc5 Qc7 19. Kb1 Rf7 20. Rg1 h6 21. Bf1 e5 22. Qg3 Nc8 23. g5 fxg5 24. Bh3 Rf6 25. dxe5 Nxe5 26. Bd4 Rf4 27. Be6+ Kh8 28. Bxe5 Qxe5 29. Bxc8 Rxc8 30. Rxd5 Qf6 31. Qh3 Rf8 32. e5 Qb6 33. Rgd1 Rxf3 34. Qd7 R3f7 35. Qh3 b4 36. Rd6 Qc5 37. e6 Re7 38. Rd8 Ree8 39. R8d5 Qc6 40. Rd6 Qe4 41. axb4 Rf6 42. Qc3 Rfxe6 43. Rd7 R6e7 44. R7d6 Kh7 45. b5 Re5 46. Rg6 R8e7 47. Rd4 Qh1+ 48. Ka2 Qxh5 49. Ra6 Rxb5 50. Qxc4 Qf7 51. Qxf7 Rxf7 52. b4 Rf4 53. Rd7 0-1

[Event "CZE-ch Youth B16 2022"]
[Site "Luhacovice"]
[Date "2022.03.14"]
[Round "4.2"]
[White "Dolensky, Filip"]
[Black "Le, Anh Dung"]
[Result "1-0"]
[ECO "B01"]
[WhiteElo "2021"]
[BlackElo "1998"]
[Annotator "ChessBase"]
[PlyCount "81"]
[EventDate "2022.03.12"]
[EventType "swiss"]
[EventCountry "CZE"]
[SourceTitle "playchess.com"]
[Source "ChessBase"]
[SourceQuality "1"]
[TimeControl "40/5400+30:1800+30"]

1. e4 {[%emt 0:00:02]} d5 {[%emt 0:04:50]} 2. exd5 {[%emt 0:01:17]} Qxd5 {[%emt 0:00:09]} 3. Nc3 {[%emt 0:00:11]} Qd6 {[%emt 0:00:41]} 4. d4 {[%emt 0:02:13]} c6 {[%emt 0:00:13]} 5. h3 {[%emt 0:01:28]} Nf6 {[%emt 0:00:46]} 6. Nf3 {[%emt 0:00:05]} Bf5 {[%emt 0:00:14]} 7. Bd3 {[%emt 0:01:04]} Bxd3 {[%emt 0:01:01]} 8. Qxd3 {[%emt 0:01:00]} Nbd7 {[%emt 0:00:19]} 9. O-O {[%emt 0:01:29]} e6 {[%emt 0:00:30]} 10. Re1 {[%emt 0:03:16]} Be7 {[%emt 0:01:11]} 11. Ne2 {[%emt 0:01:07]} O-O {[%emt 0:06:22]} 12. Bf4 {[%emt 0:04:35]} Qb4 {[%emt 0:06:25]} 13. c4 {[%emt 0:11:33]} Rac8 {[%emt 0:13:05]} 14. a3 {[%emt 0:06:54]} Qb6 {[%emt 0:00:18]} 15. Nc3 {[%emt 0:04:42]} Qa6 {[%emt 0:09:55]} 16. Rad1 {[%emt 0:02:36]} Rfd8 {[%emt 0:01:31]} 17. Qe2 {[%emt 0:01:40]} Nb6 {[%emt 0:11:54]} 18. Ne5 {[%emt 0:02:52]} Bd6 {[%emt 0:04:11]} 19. Bg5 {[%emt 0:12:15]} Bxe5 {[%emt 0:08:47]} 20. dxe5 {[%emt 0:01:12]} Rxd1 {[%emt 0:00:48]} 21. Rxd1 {[%emt 0:02:22]} Ne8 {[%emt 0:00:36]} 22. Rd4 {[%emt 0:01:44]} Qa5 {[%emt 0:05:43]} 23. Be7 {[%emt 0:11:09]} Na8 {[%emt 0:01:25]} 24. Bh4 {[%emt 0:09:43]} Qc7 {[%emt 0:04:40]} 25. f4 {[%emt 0:01:36]} Nb6 {[%emt 0:01:14]} 26. b3 {[%emt 0:02:16]} Nd7 {[%emt 0:01:07]} 27. Qd1 {[%emt 0:00:50]} Nf8 {[%emt 0:00:23]} 28. Bd8 {[%emt 0:04:30]} Qb8 {[%emt 0:02:35]} 29. Ne4 {[%emt 0:01:08]} c5 {[%emt 0:02:32]} 30. Rd3 {[%emt 0:00:52]} b6 {[%emt 0:04:37]} 31. Kf2 {[%emt 0:00:49]} Qa8 {[%emt 0:01:00]} 32. Ke3 {[%emt 0:00:39]} Ng6 {[%emt 0:01:38]} 33. g3 {[%emt 0:00:25]} h6 {[%emt 0:01:17]} 34. h4 {[%emt 0:00:14]} Nf8 {[%emt 0:01:48]} 35. a4 {[%emt 0:00:21]} Qb8 {[%emt 0:01:21]} 36. Be7 {[%emt 0:00:39]} Ng6 {[%emt 0:00:27]} 37. Bd8 {[%emt 0:01:37]} Nf8 {[%emt 0:01:04]} 38. h5 {[%emt 0:00:06]} Qa8 {[%emt 0:01:34]} 39. g4 {[%emt 0:00:32]} Qb7 {[%emt 0:00:48]} 40. Qf3 {[%emt 0:00:46]} Nd7 {[%emt 0:00:36]} 41. Nf6+ {[%emt 0:30:25]} 1-0

[Event "CZE-ch Youth B16 2022"]
[Site "Luhacovice"]
[Date "2022.03.14"]
[Round "4.3"]
[White "Soucek, Petr"]
[Black "Paseka, Matyas"]
[Result "1-0"]
[ECO "E71"]
[WhiteElo "2194"]
[BlackElo "2058"]
[Annotator "ChessBase"]
[PlyCount "119"]
[EventDate "2022.03.12"]
[EventType "swiss"]
[EventCountry "CZE"]
[SourceTitle "playchess.com"]
[Source "ChessBase"]
[SourceQuality "1"]
[TimeControl "40/5400+30:1800+30"]

1. c4 {[%emt 0:00:44]} Nf6 {[%emt 0:00:09]} 2. Nc3 {[%emt 0:00:05]} g6 {[%emt 0:00:05]} 3. e4 {[%emt 0:00:04]} d6 {[%emt 0:00:07]} 4. d4 {[%emt 0:00:05]} Bg7 {[%emt 0:00:09]} 5. h3 {[%emt 0:00:06]} O-O {[%emt 0:00:15]} 6. Be3 {[%emt 0:00:03]} e5 {[%emt 0:02:25]} 7. d5 {[%emt 0:00:15]} Na6 {[%emt 0:00:18]} 8. g4 {[%emt 0:00:20]} Nc5 {[%emt 0:00:53]} 9. f3 {[%emt 0:00:49]} a5 {[%emt 0:00:11]} 10. h4 {[%emt 0:00:23]} c6 {[%emt 0:14:25]} 11. h5 {[%emt 0:05:52]} a4 {[%emt 0:06:16]} 12. h6 {[%emt 0:03:03]} Bh8 {[%emt 0:00:08]} 13. Qd2 {[%emt 0:05:47]} cxd5 {[%emt 0:04:31]} 14. cxd5 {[%emt 0:00:24]} Bd7 {[%emt 0:00:24]} 15. Nh3 {[%emt 0:09:07]} Qa5 {[%emt 0:00:49]} 16. Nf2 {[%emt 0:04:06]} Rfc8 {[%emt 0:05:10]} 17. Nb1 {[%emt 0:11:22]} Qxd2+ {[%emt 0:16:21]} 18. Kxd2 {[%emt 0:01:09]} b5 {[%emt 0:00:18]} 19. Na3 {[%emt 0:04:53]} Rab8 {[%emt 0:01:01]} 20. Rc1 {[%emt 0:02:35]} Kf8 {[%emt 0:06:31]} 21. Be2 {[%emt 0:07:47]} Ne8 {[%emt 0:06:14]} 22. Nd3 {[%emt 0:00:58]} Na6 {[%emt 0:01:45]} 23. Rxc8 {[%emt 0:01:51]} Rxc8 {[%emt 0:00:38]} 24. Rc1 {[%emt 0:01:14]} Rb8 {[%emt 0:02:33]} 25. b3 {[%emt 0:13:32]} axb3 {[%emt 0:07:15]} 26. axb3 {[%emt 0:00:07]} Bf6 {[%emt 0:00:43]} 27. Ra1 {[%emt 0:02:29]} Bd8 {[%emt 0:12:23]} 28. Nc2 {[%emt 0:01:49]} Nac7 {[%emt 0:00:27]} 29. Ndb4 {[%emt 0:09:54]} Kg8 {[%emt 0:08:41]} 30. Ra7 {[%emt 0:03:13]} Ra8 {[%emt 0:01:51]} 31. Rxa8 {[%emt 0:01:13]} Nxa8 {[%emt 0:00:06]} 32. Na6 {[%emt 0:03:48]} Ba5+ {[%emt 0:02:43]} 33. b4 {[%emt 0:00:54]} Bc7 {[%emt 0:00:03]} 34. Na3 {[%emt 0:00:38]} Bc8 {[%emt 0:01:06]} 35. Nxc7 {[%emt 0:00:12]} Naxc7 {[%emt 0:00:07]} 36. Nxb5 {[%emt 0:00:17]} Nxb5 {[%emt 0:00:04]} 37. Bxb5 {[%emt 0:00:07]} Nc7 {[%emt 0:00:17]} 38. Bc6 {[%emt 0:01:20]} Ba6 {[%emt 0:00:21]} 39. Bb6 {[%emt 0:02:26]} Nb5 {[%emt 0:00:32]} 40. Bxb5 {[%emt 0:00:54]} Bxb5 {[%emt 0:00:07]} 41. Bc7 {[%emt 0:30:05]} f6 {[%emt 0:31:59]} 42. Bxd6 {[%emt 0:00:23]} g5 {[%emt 0:00:15]} 43. Be7 {[%emt 0:00:53]} Kf7 {[%emt 0:00:15]} 44. Bd8 {[%emt 0:00:45]} Ba4 {[%emt 0:00:00]} 45. d6 {[%emt 0:00:00]} Ke6 {[%emt 0:00:00]} 46. Kc3 {[%emt 0:00:00]} Bb5 {[%emt 0:00:00]} 47. d7 {[%emt 0:00:00]} Kxd7 {[%emt 0:00:00]} 48. Bxf6 {[%emt 0:00:00]} Be2 {[%emt 0:00:00]} 49. Bxe5 {[%emt 0:00:00]} Bxf3 {[%emt 0:00:00]} 50. Kd4 {[%emt 0:00:00]} Bxg4 {[%emt 0:00:00]} 51. Bf6 {[%emt 0:00:00]} Kd6 {[%emt 0:00:00]} 52. Bxg5 {[%emt 0:00:00]} Bd7 {[%emt 0:00:00]} 53. Bf4+ {[%emt 0:00:00]} Ke7 {[%emt 0:00:00]} 54. Kc5 {[%emt 0:00:00]} Bh3 {[%emt 0:00:00]} 55. b5 {[%emt 0:00:00]} Bg2 {[%emt 0:00:00]} 56. Kd5 {[%emt 0:00:00]} Bf1 {[%emt 0:00:00]} 57. b6 {[%emt 0:00:00]} Ba6 {[%emt 0:00:00]} 58. Kc6 {[%emt 0:00:00]} Bd3 {[%emt 0:00:00]} 59. e5 {[%emt 0:00:00]} Be4+ {[%emt 0:00:00]} 60. Kc7 {[%emt 0:00:00]} 1-0

[Event "CZE-ch Youth B16 2022"]
[Site "Luhacovice"]
[Date "2022.03.14"]
[Round "4.4"]
[White "Stejskal, Michal"]
[Black "Vilimek, Vit"]
[Result "1-0"]
[ECO "A48"]
[WhiteElo "1857"]
[BlackElo "1794"]
[Annotator "NA"]
[PlyCount "137"]
[EventDate "2022.03.12"]
[EventType "swiss"]
[EventCountry "CZE"]
[SourceTitle "playchess.com"]
[Source "ChessBase"]
[SourceQuality "1"]
[TimeControl "40/5400+30:1800+30"]

1. d4 {[%emt 0:00:13]} Nf6 {[%emt 0:00:03]} 2. Nf3 {[%emt 0:00:17]} g6 {[%emt 0:00:06]} 3. Nc3 {[%emt 0:00:10]} d5 {[%emt 0:00:05]} 4. Bf4 {[%emt 0:00:09]} c6 {[%emt 0:00:26]} 5. h3 {[%emt 0:01:28]} Bg7 {[%emt 0:00:19]} 6. e3 {[%emt 0:00:09]} Bf5 {[%emt 0:00:38]} 7. Bd3 {[%emt 0:01:19]} Bxd3 {[%emt 0:01:07]} 8. Qxd3 {[%emt 0:00:11]} Nbd7 {[%emt 0:01:26]} 9. Ne5 {[%emt 0:02:14]} Qa5 {[%emt 0:07:56]} (9... Nh5 $11) 10. O-O {[%emt 0:02:32]} O-O {[%emt 0:00:55]} 11. Rfe1 {[%emt 0:03:12]} Rac8 {[%emt 0:06:52]} 12. a3 {[%emt 0:07:24]} Nxe5 {[%emt 0:08:47]} 13. Bxe5 {[%emt 0:01:25]} Nd7 {[%emt 0:00:16]} 14. Bxg7 {[%emt 0:04:56]} Kxg7 {[%emt 0:02:42]} 15. b4 {[%emt 0:00:14]} Qc7 {[%emt 0:00:11]} 16. Ne2 {[%emt 0:01:53]} Nb6 {[%emt 0:01:03]} 17. Nc1 {[%emt 0:09:26]} e6 {[%emt 0:02:52]} 18. Nb3 {[%emt 0:01:47]} Nc4 {[%emt 0:00:24]} 19. Nd2 {[%emt 0:03:07]} Nxd2 {[%emt 0:01:09]} 20. Qxd2 {[%emt 0:00:05]} b6 {[%emt 0:00:06]} 21. Rec1 {[%emt 0:02:31]} Qd6 {[%emt 0:04:59]} 22. c4 {[%emt 0:09:25]} Rfd8 {[%emt 0:18:05]} 23. c5 {[%emt 0:02:59]} bxc5 {[%emt 0:02:35]} 24. Rxc5 {[%emt 0:00:33]} Rc7 {[%emt 0:09:52]} 25. Qc3 {[%emt 0:00:47]} Rb8 {[%emt 0:10:28]} 26. Rc1 {[%emt 0:00:57]} h5 {[%emt 0:01:03]} 27. b5 {[%emt 0:06:19]} Rb6 {[%emt 0:05:30]} 28. a4 {[%emt 0:00:16]} Kf8 {[%emt 0:07:25]} 29. a5 {[%emt 0:04:07]} Rb8 {[%emt 0:01:31]} 30. a6 {[%emt 0:03:25]} ({Better is} 30. g3 $18) 30... Rb6 {[%emt 0:02:13]} 31. Rxc6 {[%emt 0:00:54]} ({Resist} 31. bxc6 Rxa6 32. Qc2 Qd8 $16) 31... Rbxc6 {[%emt 0:03:13]} 32. bxc6 {[%emt 0:00:08]} Kg8 {[%emt 0:01:20]} 33. Qc2 {[%emt 0:02:01]} Kf8 {[%emt 0:00:31]} 34. Qa4 {[%emt 0:00:30]} Kg8 {[%emt 0:00:46]} 35. Qb5 {[%emt 0:01:08]} Kg7 {[%emt 0:00:26]} 36. Rc5 {[%emt 0:00:15]} Kf6 {[%emt 0:00:34]} 37. f4 {[%emt 0:03:30]} (37. h4 $18) 37... Kg7 {[%emt 0:00:19]} 38. Kf2 {[%emt 0:00:36]} Kf6 {[%emt 0:00:10]} 39. Ke2 {[%emt 0:00:20]} ({White should try} 39. g3 $18) 39... Ke7 {[%emt 0:01:02]} (39... h4 $16 40. Kd1 g5) 40. Qb8 {[%emt 0:09:36]} Qd8 {[%emt 0:00:32]} 41. Qb5 $2 {[%emt 0:31:14]} (41. Qb4 $18 Kf6 42. g3) 41... Qd6 $1 {[%emt 0:30:02]} 42. Kd3 {[%emt 0:00:30]} (42. g4 $18) 42... Ke8 {[%emt 0:00:00]} (42... h4 $16 {was necessary.} 43. Qb8 Qd8) 43. Kc3 {[%emt 0:00:00]} Ke7 {[%emt 0:00:00]} 44. Kb3 {[%emt 0:00:00]} Ke8 {[%emt 0:00:00]} (44... h4 $16 45. Kc2 Kf6) 45. Ka4 {[%emt 0:00:00]} Ke7 {[%emt 0:00:00]} 46. g3 {[%emt 0:00:00]} Ke8 {[%emt 0:00:00]} 47. Rc2 {[%emt 0:00:00]} Ke7 {[%emt 0:00:00]} 48. Rc5 {[%emt 0:00:00]} Ke8 {[%emt 0:00:00]} 49. Rc3 {[%emt 0:00:00]} Ke7 {[%emt 0:00:00]} 50. Qb8 {[%emt 0:00:00]} Qd8 {[%emt 0:00:00]} 51. Qxd8+ {[%emt 0:00:00]} Kxd8 {[%emt 0:00:00]} 52. Kb5 {[%emt 0:00:00]} Rc8 {[%emt 0:00:00]} 53. Kc5 {[%emt 0:00:00]} Rb8 {[%emt 0:00:00]} 54. Kd6 {[%emt 0:00:00]} Rb6 {[%emt 0:00:00]} 55. Ra3 {[%emt 0:00:00]} Rb1 {[%emt 0:00:00]} 56. g4 {[%emt 0:00:00]} h4 {[%emt 0:00:00]} 57. f5 {[%emt 0:00:00]} exf5 {[%emt 0:00:00]} 58. gxf5 {[%emt 0:00:00]} g5 {[%emt 0:00:00]} 59. e4 {[%emt 0:00:00]} dxe4 {[%emt 0:00:00]} 60. Re3 {[%emt 0:00:00]} Rb6 {[%emt 0:03:19]} 61. Rxe4 {[%emt 0:00:00]} Rxa6 {[%emt 0:00:57]} 62. d5 Rb6 {[%emt 0:02:31]} 63. f6 {[%emt 0:00:00]} a5 {[%emt 0:02:58]} 64. Rg4 {[%emt 0:00:00]} Ke8 {[%emt 0:01:06]} 65. Rxg5 {[%emt 0:00:00]} Kf8 {[%emt 0:00:06]} 66. Rg4 {[%emt 0:00:00]} Ra6 {[%emt 0:01:25]} 67. Rxh4 {[%emt 0:00:00]} Kg8 {[%emt 0:00:03]} 68. Ra4 {[%emt 0:00:00]} Kf8 {[%emt 0:00:19]} 69. Kd7 {[%emt 0:00:00]} 1-0